Cogmind - Beta 12 X6 @@@ ROGUE MODE // 2023.02.04 @ 20:00:54 Player: Decinym Result: Destroyed by D-53 Grenadier with Mini Grenade Launcher Performance ------------- Evolutions (0) 0 Regions Visited (2) 400 Robots Destroyed (14) 70 Value Destroyed (452) 452 Prototype IDs (0) 0 Alien Tech Used (0) 0 Bonus (-43) -43 TOTAL SCORE: 879 Bonus ------- Friendly Fire -43 Cogmind --------- Core Integrity 0/250 Matter 266/300 Energy 66/100 System Corruption 0% Temperature Cool (0) Movement Treading (240) Ox1 Location -10/Mines Parts ------- > --- POWER (1) -------- (None) > --- PROPULSION (2) --- Light Treads > --- UTILITY (2) ------ Improved Heat Sink Large Storage Unit > --- WEAPON (2) ------- Grenade Launcher > --- INVENTORY (15) --- Light Ion Engine Light Treads Aluminum Leg Wheel Compact Wheel Small Storage Unit High-capacity Storage Unit Light Assault Rifle Peak State ------------ > --- POWER ------------ Light Ion Engine > --- PROPULSION ------- Aluminum Leg Aluminum Leg > --- UTILITY ---------- Improved Heat Sink Large Storage Unit > --- WEAPON ----------- Medium Laser Medium Laser > --- INVENTORY -------- Light Ion Engine Light Treads Light Treads Aluminum Leg Wheel Compact Wheel Small Storage Unit High-capacity Storage Unit Light Assault Rifle Grenade Launcher [Rating: 10] Favorites ----------- Power Light Ion Engine Engine Light Ion Engine Propulsion Aluminum Leg Treads Light Treads Leg Aluminum Leg Utility Large Storage Unit Device Improved Heat Sink Storage Large Storage Unit Processor Visual Processing Unit Weapon Medium Laser Energy Gun Medium Laser Launcher Grenade Launcher Build | -11 -10 -10 ------- Run | Jun Mat Min Slots Evolved . | . . . Power . | . . . Propulsion . | . . . Utility . | . . . Weapon . | . . . Parts Attached 10 | . 7 3 Power . | . . . Engine . | . . . Core . | . . . Reactor . | . . . Propulsion 2 | . . 2 Treads 1 | . . 1 Leg 1 | . . 1 Wheel . | . . . Hover . | . . . Flight . | . . . Utility 3 | . 3 . Device 1 | . 1 . Storage 1 | . 1 . Processor 1 | . 1 . Hackware . | . . . Protection . | . . . Artifact . | . . . Weapon 5 | . 4 1 Energy Gun 2 | . 2 . Energy Cannon . | . . . Ballistic Gun . | . . . Ballistic Cannon . | . . . Launcher 3 | . 2 1 Special Weapon . | . . . Impact Weapon . | . . . Slashing Weapon . | . . . Piercing Weapon . | . . . Special Melee Weapon . | . . . Unidentified Prototypes . | . . . Parts Lost 5 | . . 5 Power 1 | . . 1 Propulsion 2 | . . 2 Utility . | . . . Weapon 2 | . . 2 Highest Loss Streak 5 | . . 5 To Critical Strikes . | . . . Average Slot Usage (%) 99 | . 99 99 Engine 13 | . 14 13 Leg 28 | . 28 28 Device 11 | . 8 14 Storage 14 | . 14 14 Processor 2 | . 5 . Energy Gun 27 | . 27 28 Naked Turns . | . . . Heaviest Build 28 | 12 28 28 Greatest Support 20 | 20 20 20 Greatest Overweight (x) 1 | . 1 1 Average Overweight (x) . | . . 1 Largest Inventory Capacity 15 | . 15 15 Average Capacity 14 | . 13 15 Most Carried 10 | . 9 10 Average Carried 9 | . 8 9 Final Capacity 15 | 8 15 15 Final Carried 9 | 6 9 8 Class Distribution -------------------- 100% | Mutant Dominant Class ---------------- Mutant | -10/Materials Mutant | -10/Mines Resources | -11 -10 -10 ----------- Run | Jun Mat Min Matter Collected 295 | 200 7 88 Remotely . | . . . Salvage Created 378 | . 290 88 Parts 17 | . 15 2 Haulers Intercepted 1 | . 1 . Recyclers Shooed . | . . . Parts Field Recycled . | . . . Retrieved Matter . | . . . Parts Self-Destructed . | . . . Prevented . | . . . Kills | -11 -10 -10 ------- Run | Jun Mat Min Combat Hostiles Destroyed 11 | . 8 3 Guns 5 | . 3 2 AOE 6 | . 5 1 Classes Destroyed 5 | . 4 1 Builder 1 | . 1 . Hauler 1 | . 1 . Watcher 1 | . 1 . Grunt 10 | . 8 2 Demolisher 1 | . . 1 Best Kill Streak 4 | . 4 2 Combat Bots Only 3 | . 3 2 Max Kills in Single Turn 3 | . 3 1 Gunslinging . | . . . Exploded 2 | . 2 1 Melee . | . . . Uniques/NPCs Destroyed . | . . . Combat | -11 -10 -10 -------- Run | Jun Mat Min Damage Taken 800 | . 202 598 Core 261 | . 73 188 Absorbed by Shields . | . . . Core Remaining (%) 100 | 100 . . Volleys Fired 30 | . 17 13 Largest 2 | . 2 2 Hottest 100 | . 100 100 Shots Fired 52 | . 28 24 Gun 45 | . 22 23 Cannon . | . . . Launcher 7 | . 6 1 Special . | . . . Kinetic . | . . . Thermal 45 | . 22 23 Explosive 7 | . 6 1 Electromagnetic . | . . . Robot Hit Streak 8 | . 8 3 Robot Miss Streak 2 | . 1 2 Penetration Max . | . . . Secondary Targets 2 | . 1 1 Max Gunslinging Chain 1 | . 1 1 Shots Hit Robots 31 | . 18 13 Core Hits 26 | . 17 9 Critical Kills . | . . . Critical Parts Destroyed . | . . . Critical Strikes 4 | . 2 2 Burn 4 | . 2 2 Melee Attacks . | . . . Impact . | . . . Slashing . | . . . Piercing . | . . . Sneak Attacks . | . . . Combat Hostiles . | . . . Follow-up Attacks . | . . . Damage Inflicted 885 | . 649 236 Guns 388 | . 213 175 Cannons . | . . . Explosions 467 | . 417 50 Melee . | . . . Ramming 30 | . 19 11 Kinetic . | . . . Thermal 388 | . 213 175 Explosive 467 | . 417 50 Electromagnetic . | . . . Impact . | . . . Slashing . | . . . Piercing . | . . . Highest Corruption . | . . . Average Corruption . | . . . Corruption Purged . | . . . Corruption Blocked . | . . . Overload Shots . | . . . Overflow Damage 4 | . . 4 Projectiles . | . . . Explosions 4 | . . 4 Melee . | . . . Knockbacks 1 | . . 1 Impact 1 | . . 1 Kinetic . | . . . Secondary . | . . . Self-Inflicted Damage . | . . . Shots . | . . . Rammed . | . . . Targets Rammed 4 | . 3 1 Kicked 4 | . 3 1 Crushed . | . . . Highest Temperature 372 | . 372 59 Average Temperature 129 | . 174 35 Received Heat Transfer 204 | . 114 90 Effects 3 | . 3 . Shutdowns 1 | . 1 . Energy Bleed 1 | . 1 . Interference 1 | . 1 . Siege Activations . | . . . Robots Corrupted . | . . . Combat Hostiles . | . . . Parts Fried . | . . . Impact Corruptions . | . . . Robots Melted . | . . . Combat Hostiles . | . . . Parts Melted 1 | . . 1 Heat Transferred 1443 | . 777 666 Parts Sabotaged . | . . . Parts Stolen . | . . . Parts Stripped . | . . . Power Chain Reactions . | . . . Missiles Intercepted . | . . . Alert | -11 -10 -10 ------- Run | Jun Mat Min Peak Influence 190 | . 190 87 Initial 37 | . . 37 Average 71 | . 103 44 Maximum Alert Level . | . . . Low Security (%) 100 | . 100 100 Level 1 . | . . . Level 2 . | . . . Level 3 . | . . . Level 4 . | . . . Level 5 . | . . . High Security . | . . . Max Security . | . . . Squads Dispatched 2 | . 2 . Investigation 1 | . 1 . Extermination . | . . . Reinforcement 1 | . 1 . Assault . | . . . Garrison . | . . . Intercept . | . . . Searches Triggered . | . . . Construction Impeded . | . . . Haulers Reinforced . | . . . Active Scanning Responses . | . . . Cargo Convoy Interrupts . | . . . Stealth | -11 -10 -10 --------- Run | Jun Mat Min Distress Signals . | . . . Communications Jammed . | . . . Distress Signals . | . . . Times Spotted 22 | . 11 11 Peak Tracking Total 7 | . 3 7 Tactical Retreats . | . . . Traps | -11 -10 -10 ------- Run | Jun Mat Min Traps Triggered 1 | . 1 . Indirectly . | . . . Trap Hack Attempts . | . . . Triggered . | . . . Disarmed . | . . . Reprogrammed . | . . . Reused . | . . . Traps Extracted . | . . . Installed . | . . . Triggered . | . . . Machines | -11 -10 -10 ---------- Run | Jun Mat Min Machines Disabled 1 | . 1 . Max in Single Turn 1 | . 1 . Machines Repaired . | . . . Machines Sabotaged . | . . . Overloaded Fab Kills . | . . . Hacking | -11 -10 -10 --------- Run | Jun Mat Min Machines Accessed 3 | . 3 . Terminals 3 | . 3 . Fabricators . | . . . Repair Stations . | . . . Recycling Units . | . . . Scanalyzers . | . . . Garrison Access . | . . . Total Hacks 4 | . 4 . Successful 3 | . 3 . Failed 1 | . 1 . Catastrophic . | . . . Database Lockouts . | . . . Manual 4 | . 4 . Terminals 4 | . 4 . Fabricators . | . . . Repair Stations . | . . . Recycling Units . | . . . Scanalyzers . | . . . Garrison Access . | . . . Terminal Hacks 3 | . 3 . Branch Access Points 1 | . 1 . Zone Layout 2 | . 2 . Fabricator Hacks . | . . . Repair Station Hacks . | . . . Recycling Unit Hacks . | . . . Scanalyzer . | . . . Garrison Access Hacks . | . . . Unauthorized Hacks . | . . . Terminals . | . . . Fabricators . | . . . Repair Stations . | . . . Recycling Units . | . . . Scanalyzers . | . . . Garrison Access . | . . . Data Cores Recovered . | . . . Used . | . . . Hacking Detections 1 | . 1 . Full Trace Events . | . . . Feedback Events . | . . . Feedback Blocked . | . . . Robot Schematics Acquired . | . . . Robots Built . | . . . Authchips . | . . . Time . | . . . Total Robot Build Rating . | . . . Part Schematics Acquired . | . . . Parts Built . | . . . Authchips . | . . . Time . | . . . Total Part Build Rating . | . . . Parts Repaired . | . . . Time . | . . . Parts Recycled . | . . . Recycled Matter . | . . . Retrieved Matter . | . . . Retrieved Components . | . . . Parts Scanalyzed . | . . . Part Schematics Acquired . | . . . Parts Damaged . | . . . Bothacking | -11 -10 -10 ------------ Run | Jun Mat Min Used RIF Installer . | . . . Robots Hacked . | . . . Non-combat . | . . . Combat . | . . . Robot Hacks Applied . | . . . Relay Couplers Released . | . . . Fabnet Peak Effective % . | . . . Robots Rewired . | . . . Allies Hacked . | . . . Hacks Repelled . | . . . Allies | -11 -10 -10 -------- Run | Jun Mat Min Total Allies 2 | . . 2 Largest Group 1 | . . 1 Highest-Rated Group 31 | . . 31 Highest-Rated Ally 31 | . . 31 Total Orders . | . . . Ally Attacks 8 | . . 8 Total Damage 80 | . . 80 Kills . | . . . Allies Corrupted . | . . . Allies Melted . | . . . Intel | -11 -10 -10 ------- Run | Jun Mat Min Robot Analysis Total . | . . . Derelict Logs Recovered 1 | . . 1 Drone Launches . | . . . Drone Recoveries . | . . . Exploration | -11 -10 -10 ------------- Run | Jun Mat Min Turns Passed 1107 | . 519 588 Spaces Moved 556 | 1 268 287 Core . | . . . Treads . | . . . Legs 556 | 1 268 287 Wheels . | . . . Hover . | . . . Flight . | . . . Fastest Speed 120 | 120 120 190 Average Speed 179 | 120 168 190 Slowest Speed 190 | 120 190 190 Overloaded Moves . | . . . Propulsion Burnouts . | . . . Robots Hopped . | . . . Cave-ins Triggered . | . . . Exploration Rate (%) 39 | 2 52 64 Regions Visited 2 Branch Regions 1 Pre-discovered Areas . | . . . Known Exits Taken 1 | . 1 . Unknown Exits Taken 1 | 1 . . Scrap Searched . | . . . Spaces Dug . | . . . Terrain Destroyed 31 | . 28 3 Melee . | . . . Projectile . | . . . AOE 31 | . 28 3 Terrain Rammed . | . . . Walls Destroyed . | . . . Machines Disabled . | . . . Actions | -11 -10 -10 --------- Run | Jun Mat Min Total 607 | . 303 304 Wait 6 | . 6 . Move 554 | . 267 287 Hop . | . . . Pick Up 2 | . 2 . Fast Attach 2 | . 2 . Attach 2 | . . 2 Detach . | . . . Swap 6 | . 5 1 Drop 1 | . 1 . Fire 30 | . 17 13 Melee . | . . . Ram . | . . . Kick 4 | . 3 1 Crush . | . . . Escape Stasis . | . . . Rewire . | . . . Trap . | . . . Miscellaneous . | . . . Route ------- -11/Junkyard -10/Materials (discovered 3 exits: [*Mat x2] / *Min) -10/Mines (discovered 1 exit: [*Mat]) History --------- Turn | Location | Event 1 | -11/Junkyard | Discovered new exit (range 0) 1 | -11/Junkyard | Entered Materials 80 | -10/Materials | Identified exit to Mines 200 | -10/Materials | Discovered new exit (range 16) 301 | -10/Materials | Build established: Mutant 447 | -10/Materials | Discovered new exit (range 15) 520 | -10/Materials | Entered Mines 547 | -10/Mines | Discovered new exit (range 6) 551 | -10/Mines | Learned location of 1 exit from Materials 1059 | -10/Mines | Assembled infested the area 1064 | -10/Mines | Assisted by a Guerilla fighting off Assembled 1100 | -10/Mines | Core integrity fell below 50% 1104 | -10/Mines | Core integrity fell below 20% 1108 | -10/Mines | Destroyed by D-53 Grenadier with Mini Grenade Launcher Last Messages --------------- coming from, and they're closing on this area, come on!" 01087_ C-30 ARC bursts open, deploying its payload. 01087_ D-53 Grenadier unfolds itself. 01089_ as-35008 destroyed. 01091_ A pair of derelicts emerge from the shadows: "We're, um, lost. You wouldn't happen to know the way out of here, would you?" 01092_ as-34563 destroyed. 01092_ MV-TL2(z) destroyed. 01094_ as-67730 destroyed. 01094_ as-99414 destroyed. 01098_ The unstable cave ceiling collapses. 01099_ Lgt. Ion Engine destroyed. 01101_ Med. Laser destroyed. 01101_ K-01 Serf collects debris. 01103_ Aluminum Leg destroyed. 01103_ Med. Laser destroyed. 01106_ The unstable cave ceiling collapses. 01106_ Aluminum Leg destroyed. 01106_ D-53 Grenadier destroyed. 01106_ Destroyed Shock Absorption System. Map ----- +----------------------------------------------------+ | ?????#### ##?????????# ##?????# ##?## # | | ????????# #########???# ##??????# ### # | | ????????# #???## ######???????# # | | ????##### ####### #????##?????????????# ## | | ????# ## #???????????????????# ##? | | ????# ## #???????????????????# ##?? | | ????# ## #???????????????????## #??? | | ????# """ ## #????????????????????### #?? | | ????# """ ## #??????????????????????## #?? | | ????# """ ## ######???????####???????# #?? | | ??? """ ## #??????## ##??????## #?? | | ??### #######%#??????# #???????####?? | | ????############# k ##????# #????????????? | | ?????????????# ##???# #????????????# | | ????????????? # #???# #???????????## | | ?????????????? ## " #???# #??????????## | | ????????????? #????# #??????????# | | ??????????????#% a ##??## #?########## | | ??????????????#$ a #### ### | | ??????????????#?? d | | ??????????????????# g ######### | | ??????????????????? # # ########???????? | | ????????????????????# # #??????????????? | | ????????????????????# # ##??????????????? | | ???????????????????## ###???????????????? | | ???????????????????# @ #?????????????????? | | ???????????????????## #?????????????????? | | ????????????????????# #?????????????????? | | ????????????????????## #?????????????????? | | ?????????????????????## #?????????????????? | | ??????????????????????## ####?????????????????? | | ???????????????????????## ##????????????????????? | | ????????????????????????# #?????????????????????? | | ????????????????????????# #?????????????????????? | | ????????????????????????? #?????????????????????? | | ????????????????????????? #?????????????????????? | | ????????????????????????? ?????????????????????? | | ????????????????????????? ?????????????????????? | | ?????????????????????????# ?????????????????????? | | ?????????????????????????? ?????????????????????? | | ??????????????????????????# ?????????????????????? | | ?????????????????????????????????????????????????? | | ?????????????????????????????????????????????????? | | ?????????????????????????????????????????????????? | | ?????????????????????????????????????????????????? | | ?????????????????????????????????????????????????? | | ?????????????????????????????????????????????????? | | ?????????????????????????????????????????????????? | | ?????????????????????????????????????????????????? | | ?????????????????????????????????????????????????? | +----------------------------------------------------+ Best States ------------- Heat Dissipation 39 Energy Generation 10 Energy Capacity 125 Matter Stores 300 Matter Capacity 300 Sight Range 18 Terrain Scan Density 10 Evasion (%) 55 Item Schematics ----------------- None Robot Schematics ------------------ None Fabricated ------------ Nothing Alien Tech Used ----------------- None Achievements -------------- None Challenges ------------ None Game ------ Seed StorageRagnarokDevice Manual? 0 Play Time 00:05:45 Cumulative 448.4 hours Start 2023.02.04 @ 19:56:49 End 2023.02.04 @ 20:00:54 Sessions 1 Manual Loads 0 Difficulty Rogue Special Mode None Game No. 448 Rogue 448 Adventurer 0 Explorer 0 Win Type - Total 32 Types 18/3/4/1/2/1/3/0/0 Lore% 92 Gallery% 94 Achievement% 82 Wizard Run 0 Options --------- ASCII 0 Keyboard 0 Movement Arrows Keybinds 0 Fullscreen 2 Font 24/Smallcaps Map View 76x50 Tactical HUD 1 Map Filters NONE Filters NONE Steam 1 RUN: c310eb10-2881-4c2e-b5cd-31d44a6c2672